Cogmind - Beta 15 @@@ ROGUE MODE // 2025.10.18 @ 04:57:30 Player: mewcatx Result: Core destroyed Performance ------------- Evolutions (0) 0 Regions Visited (4) 800 Robots Destroyed (14) 70 Value Destroyed (246) 246 Prototype IDs (26) 520 Alien Tech Used (0) 0 Bonus (300) 300 TOTAL SCORE: 1936 Bonus ------- Aligned with FarCom 300 Cogmind --------- Core Integrity 0/250 Matter 278/300 Energy 89/125 System Corruption 0% Temperature Critical (514) Movement Hovering (150) Ox1 Location -9/Mines Parts ------- > --- POWER (1) -------- Light Ion Engine > --- PROPULSION (2) --- Combat Airjet > --- UTILITY (2) ------ Small Storage Unit Light Armor Plating > --- WEAPON (2) ------- Guided Plasma Cannon Light Assault Rifle > --- INVENTORY (8) ---- Fission Core Heat Sink Large Matter Pod (150) Sensor Array Signal Interpreter Improved Terrain Scanner Seismic Detector Grenade Launcher Peak State ------------ > --- POWER ------------ Light Ion Engine > --- PROPULSION ------- Hover Unit Combat Airjet > --- UTILITY ---------- Small Storage Unit Sensor Array > --- WEAPON ----------- Guided Plasma Cannon Grenade Launcher > --- INVENTORY -------- Fission Core Heat Sink Medium Matter Pod Signal Interpreter Improved Terrain Scanner Seismic Detector Light Armor Plating Light Assault Rifle [Rating: 19] Favorites ----------- Power Light Ion Engine Engine Light Ion Engine Propulsion Light Treads Treads Light Treads Leg Aluminum Leg Wheel Wheel Hover Unit Combat Airjet Utility Small Storage Unit Device Seismic Detector Storage Small Storage Unit Protection Light Armor Plating Weapon Medium Laser Energy Gun Medium Laser Energy Cannon Guided Plasma Cannon Ballistic Gun Assault Rifle Launcher Grenade Launcher Special Weapon Mining Laser Impact Weapon Hammer Build | -11 -10 -10 -10 -9 ------- Run | Yrd Mat Min Exi Min Slots Evolved . | . . . . . Power . | . . . . . Propulsion . | . . . . . Utility . | . . . . . Weapon . | . . . . . Parts Attached 26 | 18 3 2 1 2 Power 4 | 3 1 . . . Engine 4 | 3 1 . . . Core . | . . . . . Reactor . | . . . . . Propulsion 7 | 6 1 . . . Treads 2 | 2 . . . . Leg 2 | 2 . . . . Wheel 1 | 1 . . . . Hover 2 | 1 1 . . . Flight . | . . . . . Utility 5 | 3 . 1 . 1 Device 3 | 2 . 1 . . Storage 1 | 1 . . . . Processor . | . . . . . Hackware . | . . . . . Protection 1 | . . . . 1 Artifact . | . . . . . Weapon 10 | 6 1 1 1 1 Energy Gun 1 | 1 . . . . Energy Cannon 1 | . . . 1 . Ballistic Gun 3 | 2 . . . 1 Ballistic Cannon . | . . . . . Launcher 2 | 1 . 1 . . Special Weapon 2 | 2 . . . . Impact Weapon 1 | . 1 . . . Slashing Weapon . | . . . . . Piercing Weapon . | . . . . . Special Melee Weapon . | . . . . . Unidentified Prototypes . | . . . . . Parts Lost 12 | 9 2 . . 1 Power 3 | 2 1 . . . Propulsion 3 | 2 . . . 1 Utility . | . . . . . Weapon 6 | 5 1 . . . Highest Loss Streak 9 | 9 2 . . 1 To Critical Strikes . | . . . . . Average Backups 6 | 5 7 7 7 8 Power . | 1 1 . . 1 Propulsion 1 | 1 1 1 . . Utility 2 | 1 4 6 6 6 Weapon 1 | 1 . . 1 1 Tool/Special . | . . . . . Unused Backups 10 | . 2 1 2 5 Power 2 | . 1 . . 1 Propulsion 2 | . . 1 1 . Utility 6 | . 1 . 1 4 Weapon . | . . . . . Tool/Special . | . . . . . Average Slot Usage (%) 97 | . 83 100 100 98 Engine 13 | . 13 14 14 14 Hover 27 | . 23 28 28 26 Device 13 | . 14 14 14 10 Storage 14 | . 14 14 14 14 Energy Cannon 6 | . . . 11 14 Launcher 11 | . . 14 14 10 Special Weapon 1 | . 10 . . . Impact Weapon 6 | . 2 14 2 . Peak Build Rating 19 | 11 11 12 19 19 Average Rating 9 | 8 10 11 17 18 On Entrance 10 | . 11 11 12 19 Naked Turns . | . . . . . Heaviest Build 22 | 13 11 14 22 22 Greatest Support 40 | 40 18 18 18 18 Greatest Overweight (x) 1 | . . . 1 1 Average Overweight (x) . | . . . . 1 Largest Inventory Capacity 8 | 8 8 8 8 8 Average Capacity 7 | 7 8 8 8 8 Most Carried 8 | 7 8 8 8 8 Average Carried 6 | 5 7 7 7 8 Final Capacity 8 | 8 8 8 8 8 Final Carried 8 | 6 8 8 8 8 Class Distribution -------------------- 81% | Scavenger-Mutant 18% | Mutant Dominant Class ---------------- Scavenger-Mutant | -10/Materials Mutant | -10/Mines Mutant | -10/Exiles Skirmisher | -9/Mines Resources | -11 -10 -10 -10 -9 ----------- Run | Yrd Mat Min Exi Min Matter Collected 508 | 448 6 34 20 . Remotely . | . . . . . Salvage Created 416 | 183 19 80 . 134 Parts 26 | 10 2 6 . 8 Haulers Intercepted . | . . . . . Recyclers Shooed . | . . . . . Parts Field Recycled . | . . . . . Retrieved Matter . | . . . . . Parts Self-Destructed . | . . . . . Prevented . | . . . . . Kills | -11 -10 -10 -10 -9 ------- Run | Yrd Mat Min Exi Min Combat Hostiles Destroyed 16 | 6 2 3 . 5 Melee 4 | . 1 3 . . Guns 2 | 2 . . . . Cannons 9 | 3 1 . . 5 Classes Destroyed 5 | 3 1 1 . . Tunneler 3 | 3 . . . . Recycler 1 | 1 . . . . Swarmer 6 | . . 3 . 3 Grunt 4 | . 2 . . 2 Assembled 6 | 6 . . . . Best Kill Streak 4 | 4 1 3 . 3 Combat Bots Only 4 | 4 1 3 . 3 Max Kills in Single Turn 2 | 2 1 1 . 1 Gunslinging . | . . . . . Exploded . | . . . . . Melee 1 | . 1 1 . . Uniques/NPCs Destroyed . | . . . . . Combat | -11 -10 -10 -10 -9 -------- Run | Yrd Mat Min Exi Min Hostile Shots Fired 135 | 92 18 11 . 14 Missed 38 | 26 6 4 . 2 Hits 97 | 66 12 7 . 12 Melee 5 | 5 . . . . Projectile 92 | 61 12 7 . 12 AOE 1 | 1 . . . . Critical Strikes 1 | 1 . . . . Part Disruptions 1 | 1 . . . . Damage Taken 1343 | 967 128 52 . 196 Core 273 | 191 12 15 . 55 Absorbed by Shields . | . . . . . Core Remaining (%) 23 | 23 . . . . Volleys Fired 63 | 36 8 . . 19 Largest 2 | 2 1 . . 1 Hottest 120 | 120 100 . . 120 Shots Fired 95 | 68 8 . . 19 Gun 71 | 64 . . . 7 Cannon 12 | . . . . 12 Launcher . | . . . . . Special 12 | 4 8 . . . Kinetic 41 | 34 . . . 7 Thermal 54 | 34 8 . . 12 Explosive . | . . . . . Electromagnetic . | . . . . . Robot Hit Streak 8 | 6 5 . . 8 Robot Miss Streak 3 | 3 2 . . 1 Penetration Max . | . . . . . Secondary Targets . | . . . . . Shots Hit Robots 60 | 37 4 6 . 13 Core Hits 26 | 13 2 4 . 7 Critical Kills 1 | . 1 . . . Critical Parts Destroyed . | . . . . . Critical Strikes 4 | 3 1 . . . Burn 3 | 3 . . . . Smash 1 | . 1 . . . Melee Attacks 9 | . 2 7 . . Impact 9 | . 2 7 . . Slashing . | . . . . . Piercing . | . . . . . Sneak Attacks . | . . . . . Combat Hostiles . | . . . . . Follow-up Attacks . | . . . . . Damage Inflicted 1261 | 505 104 177 . 475 Guns 476 | 426 . . . 50 Cannons 425 | . . . . 425 Explosions . | . . . . . Melee 209 | . 32 177 . . Ramming 7 | 7 . . . . Kinetic 285 | 235 . . . 50 Thermal 760 | 263 72 . . 425 Explosive . | . . . . . Electromagnetic . | . . . . . Impact 209 | . 32 177 . . Slashing . | . . . . . Piercing . | . . . . . Highest Corruption . | . . . . . Average Corruption . | . . . . . Corruption Purged . | . . . . . Corruption Blocked . | . . . . . Overload Shots . | . . . . . Overflow Damage 23 | 1 . . . 22 Projectiles 22 | . . . . 22 Explosions . | . . . . . Melee 1 | 1 . . . . Knockbacks . | . . . . . Impact . | . . . . . Kinetic . | . . . . . Secondary . | . . . . . Self-Inflicted Damage 2 | 2 . . . . Shots . | . . . . . Rammed 3 | 3 . . . . Targets Rammed 3 | 3 . . . . Kicked . | . . . . . Crushed . | . . . . . Highest Temperature 514 | 133 174 . . 514 Average Temperature 94 | 34 65 . . 226 Received Heat Transfer 430 | 280 60 . . 90 Effects 4 | . . . . 4 Interference 3 | . . . . 3 Damage (core) 1 | . . . . 1 Siege Activations . | . . . . . Martial Activations . | . . . . . Shielding Activations . | . . . . . Robots Disrupted . | . . . . . Combat Hostiles . | . . . . . Robots Corrupted 1 | 1 . . . . Combat Hostiles 1 | 1 . . . . Parts Fried . | . . . . . Impact Corruptions 1 | 1 . . . . Robots Melted . | . . . . . Combat Hostiles . | . . . . . Parts Melted 3 | . . . . 3 Heat Transferred 2037 | 927 150 . . 960 Parts Sabotaged . | . . . . . Parts Stolen . | . . . . . Parts Stripped . | . . . . . Power Chain Reactions . | . . . . . Alert | -11 -10 -10 -10 -9 ------- Run | Yrd Mat Min Exi Min Maximum Alert Level . | . . . . . Low Security (%) 100 | 100 100 100 . 100 Level 1 . | . . . . . Level 2 . | . . . . . Level 3 . | . . . . . Level 4 . | . . . . . Level 5 . | . . . . . High Security . | . . . . . Max Security . | . . . . . Peak Influence 80 | 10 30 63 . 80 Initial 3 | . . 3 . . Average 1 | . 8 10 . 55 Influence Increases 304 | 20 89 75 . 120 Destroy 0b10 Robot/C 200 | . 40 60 . 100 Destroy 0b10 Robot/NC 25 | 20 . 5 . . Destroy Leader 40 | . 10 10 . 20 Successful Hack 6 | . 6 . . . Disable Machine 15 | . 15 . . . Destroy Structure 3 | . 3 . . . Lose Combat Pursuer 15 | . 15 . . . Influence Decreases 224 | 20 79 85 . 40 Entered New Map 7 | . . 7 . . Time Decay 199 | 20 71 78 . 30 Lost Part 18 | . 8 . . 10 Squads Dispatched 1 | . 1 . . . Investigation 1 | . 1 . . . Extermination . | . . . . . Reinforcement . | . . . . . Assault . | . . . . . Garrison . | . . . . . Intercept . | . . . . . Searches Triggered . | . . . . . Construction Impeded . | . . . . . Haulers Reinforced . | . . . . . Active Scanning Responses . | . . . . . Cargo Convoy Interrupts . | . . . . . Stealth | -11 -10 -10 -10 -9 --------- Run | Yrd Mat Min Exi Min Distress Signals . | . . . . . Communications Jammed . | . . . . . Distress Signals . | . . . . . Times Spotted 50 | 31 11 3 . 5 Peak Tracking Total 20 | 20 8 3 . 3 Tactical Retreats 2 | 1 1 . . . Traps | -11 -10 -10 -10 -9 ------- Run | Yrd Mat Min Exi Min Traps Triggered 1 | . 1 . . . Indirectly . | . . . . . Trap Hack Attempts . | . . . . . Triggered . | . . . . . Disarmed . | . . . . . Reprogrammed . | . . . . . Reused . | . . . . . Traps Extracted . | . . . . . Installed . | . . . . . Triggered . | . . . . . Machines | -11 -10 -10 -10 -9 ---------- Run | Yrd Mat Min Exi Min Machines Disabled 1 | . 1 . . . Max in Single Turn 1 | . 1 . . . Machines Repaired . | . . . . . Machines Dismantled . | . . . . . Machines Sabotaged . | . . . . . Overloaded Fab Kills . | . . . . . Hacking | -11 -10 -10 -10 -9 --------- Run | Yrd Mat Min Exi Min Machines Accessed 5 | . 1 . 4 . Terminals 1 | . 1 . . . Fabricators . | . . . . . Repair Stations . | . . . . . Recycling Units . | . . . . . Scanalyzers . | . . . . . Garrison Access . | . . . . . Total Hacks 40 | . 3 . 37 . Successful 39 | . 2 . 37 . Failed 1 | . 1 . . . Catastrophic . | . . . . . Database Lockouts . | . . . . . Manual 5 | . 3 . 2 . Terminals 3 | . 3 . . . Fabricators . | . . . . . Repair Stations . | . . . . . Recycling Units . | . . . . . Scanalyzers . | . . . . . Garrison Access . | . . . . . Terminal Hacks 39 | . 2 . 37 . Record 36 | . . . 36 . Prototype ID Bank 2 | . 2 . . . Proto ID Catalog 1 | . . . 1 . Fabricator Hacks . | . . . . . Repair Station Hacks . | . . . . . Recycling Unit Hacks . | . . . . . Scanalyzer . | . . . . . Garrison Access Hacks . | . . . . . Unauthorized Hacks . | . . . . . Terminals . | . . . . . Fabricators . | . . . . . Repair Stations . | . . . . . Recycling Units . | . . . . . Scanalyzers . | . . . . . Garrison Access . | . . . . . Data Cores Recovered . | . . . . . Used . | . . . . . Hacking Detections 1 | . 1 . . . Full Trace Events . | . . . . . Feedback Events . | . . . . . Feedback Blocked . | . . . . . Robot Schematics Acquired . | . . . . . Robots Built . | . . . . . Authchips . | . . . . . Time . | . . . . . Total Robot Build Rating . | . . . . . Part Schematics Acquired . | . . . . . Parts Built . | . . . . . Authchips . | . . . . . Time . | . . . . . Total Part Build Rating . | . . . . . Parts Repaired . | . . . . . Time . | . . . . . Parts Recycled . | . . . . . Recycled Matter . | . . . . . Retrieved Matter . | . . . . . Retrieved Components . | . . . . . Parts Scanalyzed . | . . . . . Part Schematics Acquired . | . . . . . Parts Damaged . | . . . . . Bothacking | -11 -10 -10 -10 -9 ------------ Run | Yrd Mat Min Exi Min Used RIF Installer . | . . . . . Robots Hacked . | . . . . . Non-combat . | . . . . . Combat . | . . . . . Robot Hacks Applied . | . . . . . Relay Couplers Released . | . . . . . Fabnet Peak Effective % . | . . . . . Robots Rewired . | . . . . . Allies Hacked . | . . . . . Hacks Repelled . | . . . . . Allies | -11 -10 -10 -10 -9 -------- Run | Yrd Mat Min Exi Min Total Allies . | . . . . . Largest Group . | . . . . . Highest-Rated Group . | . . . . . Highest-Rated Ally . | . . . . . Total Orders . | . . . . . Ally Attacks . | . . . . . Total Damage . | . . . . . Kills . | . . . . . Allies Corrupted . | . . . . . Allies Melted . | . . . . . Intel | -11 -10 -10 -10 -9 ------- Run | Yrd Mat Min Exi Min Active Infowar (turns) 6408 | 4808 220 563 806 11 Sensors 1355 | . . 538 806 11 Seismic 5053 | 4808 220 25 . . Robot Analysis Total . | . . . . . Derelict Logs Recovered . | . . . . . Drone Launches . | . . . . . Drone Recoveries . | . . . . . Exploration | -11 -10 -10 -10 -9 ------------- Run | Yrd Mat Min Exi Min Turns Passed 7873 | 6211 220 563 806 73 Spaces Moved 3257 | 1968 170 401 703 15 Core 16 | 16 . . . . Treads 1151 | 1151 . . . . Legs 4 | 4 . . . . Wheels 7 | 7 . . . . Hover 2079 | 790 170 401 703 15 Flight . | . . . . . Fastest Speed 50 | 50 66 66 66 131 Average Speed 114 | 128 70 66 113 131 Slowest Speed 160 | 160 85 66 131 131 Overloaded Moves . | . . . . . Propulsion Burnouts . | . . . . . Robots Hopped . | . . . . . Potential Cave-ins . | . . . . . Cave-ins Triggered . | . . . . . Exploration Rate (%) 59 | 124 37 39 93 4 Regions Visited 4 Branch Regions 3 Pre-discovered Areas 1 | . . . 1 . Known Exits Taken . | . . . . . Unknown Exits Taken 4 | 1 1 1 1 . Scrap Searched . | . . . . . Spaces Dug . | . . . . . Terrain Destroyed 4 | 1 3 . . . Melee . | . . . . . Projectile 4 | 1 3 . . . AOE . | . . . . . Terrain Rammed . | . . . . . Walls Destroyed . | . . . . . Machines Disabled . | . . . . . Actions | -11 -10 -10 -10 -9 --------- Run | Yrd Mat Min Exi Min Total 7257 | 5567 243 687 710 50 Wait 3866 | 3527 52 273 . 14 Move 3253 | 1967 169 400 702 15 Hop . | . . . . . Pick Up 23 | 12 6 3 2 . Fast Attach 13 | 11 1 . 1 . Attach 9 | 6 2 1 . . Detach . | . . . . . Swap 5 | 2 . 1 . 2 Drop 11 | 3 3 2 3 . Fire 63 | 36 8 . . 19 Melee 9 | . 2 7 . . Ram 3 | 3 . . . . Kick . | . . . . . Crush . | . . . . . Escape Stasis . | . . . . . Rewire 2 | . . . 2 . Trap . | . . . . . Miscellaneous . | . . . . . Route ------- -11/Scrapyard -10/Materials (discovered 2 exits: [*Mat] / [*Min]) -10/Mines (discovered 3 exits: [*Mat] / *Exi / [*Sub]) -10/Exiles (discovered 2 exits: [*Min x2]) -9/Mines History --------- Turn | Location | Event 5 | -11/Scrapyard | Discovered new exit (range 15) 3821 | -11/Scrapyard | Assembled infested the area 3896 | -11/Scrapyard | Core integrity fell below 50% 3959 | -11/Scrapyard | Lost 9 parts (2p2n5w) 6212 | -11/Scrapyard | Entered Materials 6213 | -10/Materials | Build established: Scavenger-Mutant 6338 | -10/Materials | Discovered new exit (range 16) 6378 | -10/Materials | Core integrity fell below 20% 6422 | -10/Materials | Discovered new exit (range 15) 6432 | -10/Materials | Entered Mines 6571 | -10/Mines | Discovered new exit (range 4) 6597 | -10/Mines | Discovered new exit (range 13) 6605 | -10/Mines | Assembled infested the area 6690 | -10/Mines | Build established: Mutant 6993 | -10/Mines | Deemed a non-threat by the Exiles lab entrance 6993 | -10/Mines | Discovered new exit (range 5) 6995 | -10/Mines | Entered Exiles 7013 | -10/Exiles | Met 8R-AWN 7016 | -10/Exiles | Discovered new exit (range 15) 7042 | -10/Exiles | Met EX-HEX 7063 | -10/Exiles | Met EX-BIN 7071 | -10/Exiles | Aligned with FarCom system 7072 | -10/Exiles | Given EX-Vault access code 7104 | -10/Exiles | Opened EX-Vault 7122 | -10/Exiles | Found Gui. Plasma Cannon 7150 | -10/Exiles | Warned to stay clear of 0b10 Research branches 7186 | -10/Exiles | Met EX-DEC 7202 | -10/Exiles | Learned location of Zion (-7) 7476 | -10/Exiles | Visited The Gauntlet 7787 | -10/Exiles | Discovered new exit (range 10) 7801 | -10/Exiles | Left Exiles lab with Gui. Plasma Cannon 7801 | -10/Exiles | Entered Mines 7875 | -9/Mines | Core destroyed Last Messages --------------- 07787_ EXIT=FOUND LOCATION=UNKNOWN GOAL=ESCAPE 07801_ Receiving FarCom transmissions... 07806_ Destroyed Flight Unit. 07806_ S-10 Pest destroyed. 07810_ Lgt. Assault Rifle melted. 07810_ Flight Unit melted. 07810_ S-10 Pest destroyed. 07812_ Overheating: System interference. 07812_ Gui. Plasma Cannon temporarily disabled. 07812_ Sensor Array temporarily disabled. 07844_ Destroyed Ion Engine. 07846_ G-34 Mercenary destroyed. 07847_ Overheating: System interference. 07847_ Gui. Plasma Cannon temporarily disabled. 07862_ Hover Unit destroyed. 07873_ Aluminum Leg melted. 07873_ G-47 Trooper destroyed. 07875_ Overheating: Core damaged (-25). Map ----- +----------------------------------------------------+ | ????????????????????????????????? | | ????????????????????????????????? | | ????????????????????????????????? | | ????????????????????????????????? | | ????????????????????????????????? | | ????????????????????????????????? | | ????????????????????????????????? | | ????????????????????????????????? | | ????????????????????????????????? | | ????????????????????????????????? | | ????????????????????????????????? | | ????????????????????????????????? | | ????????????????????????????????? | | ????????????????????????????????? | | ????????????????????????????????? | | ????????????????????????????????? | | ????????????????##??????????????? | | ???????????????? ##?????????????? | | ??????????????? ?????????????? | | ????###???????? ??????????????? | | ???## ##?????? ???????????????? | | ???# #?????? ????????????????? | | ???# ==##???? ?????????????????? | | ???##%[%##??? #?????????????????? | | ????#= #?? $#?????????????????? | | ????# @###= #?????????????????? | | ???# =%!%= #?????????????????? | | ??# ######?????????????????? | | ?# ##??????????????????????? | | ?# ###???????????????????????? | | ?## ##?????????????????????????? | | ??###???????????????????????????? | | ????????????????????????????????? | | ????????????????????????????????? | | ????????????????????????????????? | | ????????????????????????????????? | | ????????????????????????????????? | | ????????????????????????????????? | | ????????????????????????????????? | | ????????????????????????????????? | | ????????????????????????????????? | | ????????????????????????????????? | | ????????????????????????????????? | | ????????????????????????????????? | | ????????????????????????????????? | | ????????????????????????????????? | | | | | | | | | +----------------------------------------------------+ Best States ------------- Heat Dissipation 25 Energy Generation 10 Energy Capacity 125 Matter Stores 300 Matter Capacity 300 Sight Range 16 Robot Scan Range 14 Terrain Scan Density 10 Armor Coverage 150 Evasion (%) 51 Recoil Reduction 2 Item Schematics ----------------- None Robot Schematics ------------------ None Fabricated ------------ Nothing Repaired ---------- Nothing Alien Tech Used ----------------- None Achievements -------------- None Challenges ------------ None Game ------ Seed MinesnifferBombardmentSteel Manual? 0 Play Time 00:31:55 Cumulative 63.4 hours Start 2025.10.18 @ 04:25:20 End 2025.10.18 @ 04:57:30 Sessions 1 Manual Loads 0 Difficulty Rogue Special Mode None Game No. 38 Rogue 31 Adventurer 7 Explorer 0 Win Type - Total 2 Types 1/0/0/0/0/0/0/1/0/0 Lore% 33 Gallery% 42 Achievement% 41 Wizard Run 0 Options --------- Layout 1 ASCII 0 Keyboard 0 Movement Mouse Keybinds 0 Fullscreen 2 Font 36/CogNarrow++ Map View 50x40 Zoom Use 0% Tactical HUD 1 Map Filters NONE Filters NONE Steam 0 RUN: 4afd7a35-7f95-4b2b-a965-9173e35854ab